bitfinex/quotes_SOLUSD_20260217
["timestamp","ask_amount","ask_price","bid_price","bid_amount"]
[1771345546998,11.82089658,84.596,84.571,0.5]
[1771345547202,11.8213903,84.593,84.571,0.5]
[1771345547599,14.44463561,84.59,84.571,0.5]
[1771345547906,12.02180369,84.59,84.563,0.5]
[1771345548289,0.2,84.59,84.565,0.5]
[1771345549000,2.62283192,84.59,84.565,0.5]
[1771345549203,11.82186809,84.589,84.558,0.5]
[1771345549697,2.42283192,84.57,84.541,0.5]
[1771345550203,2.42283192,84.58,84.542,0.5]
[1771345550700,2.42283192,84.57,84.542,0.5]
[1771345551891,11.82466388,84.569,84.542,0.5]
[1771345552799,11.82393313,84.575,84.544,0.5]
[1771345553392,11.82327281,84.579,84.551,0.5]
[1771345554312,29.55506885,84.588,84.551,0.5]
[1771345555098,29.55506885,84.588,84.54,2.92283192]
[1771345555099,2.42283192,84.57,84.54,2.92283192]
[1771345555714,2.42283192,84.57,84.541,0.5]
[1771345556208,2.42283192,84.58,84.541,0.5]
[1771345556407,11.82326582,84.579,84.541,0.5]
[1771345557504,11.82326582,84.579,84.551,0.5]
[1771345557936,11.82200784,84.588,84.561,0.5]
[1771345560501,11.82200784,84.588,84.554,0.5]
[1771345561312,11.82200784,84.588,84.561,0.5]
[1771345561699,2.42283192,84.58,84.553,15.88]
[1771345562017,11.82200784,84.588,84.554,0.5]
[1771345562216,2.42283192,84.58,84.546,0.5]
[1771345562798,2.42283192,84.57,84.546,0.5]
[1771345563202,2.42283192,84.57,84.538,0.5]
[1771345563413,2.42283192,84.58,84.541,0.5]
[1771345563618,2.42283192,84.57,84.51,29.58209059]
[1771345563913,2.42283192,84.52,84.495,0.5]
[1771345564320,11.83165915,84.519,84.495,0.5]
[1771345564994,11.83165915,84.519,84.486,0.5]
[1771345564995,2.42283192,84.51,84.486,0.5]
[1771345565911,7.2172526,84.51,84.475,0.5]
[1771345566516,7.2172526,84.5,84.467,0.5]
[1771345567617,7.2172526,84.48,84.451,15.88]
[1771345567791,7.08822293,84.48,84.449,0.5]
[1771345568293,11.83726133,84.479,84.449,0.5]
[1771345568498,11.83726133,84.479,84.346,64.99916964]
[1771345568499,7.2172526,84.46,84.431,0.5]
[1771345568697,7.2172526,84.46,84.429,11.84419859]
[1771345568698,7.2172526,84.45,84.421,0.5]
[1771345569300,7.2172526,84.44,84.41,0.1]
[1771345569499,7.2172526,84.43,84.41,0.1]
[1771345569912,7.2172526,84.44,84.411,0.5]
[1771345570110,7.2172526,84.42,84.39,0.1]
[1771345570308,0.46809457,84.444,84.39,7.3172526]
[1771345570614,41.44709573,84.445,84.39,7.3172526]
[1771345570615,7.2172526,84.42,84.39,7.3172526]
[1771345571122,7.2172526,84.42,84.39,0.1]
[1771345571513,7.2172526,84.41,84.39,0.1]
[1771345571708,0.46809457,84.409,84.39,0.1]
[1771345572097,0.46809457,84.419,84.39,0.1]
[1771345572403,41.45986092,84.419,84.39,0.5524664]
[1771345572603,0.46809457,84.418,84.39,0.5524664]
[1771345572939,7.2172526,84.42,84.39,0.5524664]
[1771345573118,0.46809457,84.419,84.391,11.84960481]
[1771345573332,0.46809457,84.428,84.392,0.4524664]
[1771345573495,19.06139903,84.43,84.392,0.4524664]
[1771345573831,11.842884,84.439,84.401,0.4524664]
[1771345573999,11.842884,84.439,84.403,0.4524664]
[1771345574732,11.842884,84.439,84.405,0.48813321]
[1771345575100,11.84146644,84.449,84.411,0.48813321]
[1771345575301,0.46093569,84.448,84.411,0.48813321]
[1771345575821,7.2172526,84.45,84.421,0.48813321]
[1771345576609,19.05731699,84.46,84.423,0.48813321]
[1771345577008,7.2172526,84.45,84.423,0.48813321]
[1771345577222,19.05731699,84.46,84.423,0.48813321]
[1771345578608,7.2172526,84.45,84.42,15.86]
[1771345578814,0.46093569,84.449,84.42,15.86]
[1771345579830,0.46093569,84.449,84.421,11.84539391]
[1771345580136,41.43987495,84.46,84.423,0.48813321]
[1771345580137,19.05731699,84.46,84.423,0.48813321]
[1771345580619,19.05731699,84.46,84.411,29.61675728]
[1771345580620,0.46093569,84.508,84.433,5.84899509]
[1771345580807,0.46093569,84.508,84.47,7.2172526]
[1771345581003,0.46093569,84.508,84.471,0.48813321]
[1771345581409,0.46093569,84.508,84.468,15.88]
[1771345581410,0.46093569,84.508,84.481,0.48813321]
[1771345581628,0.46093569,84.508,84.48,7.2172526]
[1771345582332,0.46093569,84.508,84.471,15.88]
[1771345583231,0.46093569,84.506,84.47,7.2172526]
[1771345586009,0.46093569,84.492,84.461,0.48813321]
[1771345586433,0.46093569,84.492,84.47,7.2172526]
[1771345586622,11.83543968,84.493,84.47,7.2172526]
[1771345587335,11.83472337,84.498,84.47,7.2172526]
[1771345587635,11.83472337,84.498,84.462,15.86]
[1771345587636,0.46093569,84.497,84.462,15.86]
[1771345587839,0.46093569,84.489,84.455,15.86]
[1771345589445,11.83600037,84.488,84.456,0.48813321]
[1771345589621,0.46093569,84.48,84.45,7.2172526]
[1771345589833,0.46093569,84.48,84.441,28.19068407]
[1771345590021,0.46093569,84.48,84.45,7.2172526]
[1771345590539,0.46093569,84.48,84.451,0.48813321]
[1771345591432,0.46093569,84.478,84.451,0.48813321]
[1771345592533,0.46093569,84.478,84.453,0.48813321]
[1771345593723,0.46093569,84.476,84.453,0.48813321]
[1771345594520,0.46093569,84.476,84.444,0.48813321]
[1771345594721,0.46093569,84.476,84.445,0.48813321]
[1771345595035,0.46093569,84.476,84.45,7.22060942]
[1771345595450,0.46093569,84.476,84.451,0.48813321]
[1771345595635,0.46093569,84.489,84.451,0.48813321]
[1771345595840,0.46093569,84.489,84.46,7.22060942]
[1771345596041,0.46093569,84.489,84.457,0.48813321]
[1771345596623,0.46093569,84.499,84.471,0.48813321]
[1771345596823,0.46093569,84.499,84.452,0.48813321]
[1771345597042,0.46093569,84.499,84.461,0.48813321]
[1771345597546,0.46093569,84.499,84.47,7.70874263]
[1771345598227,0.46093569,84.507,84.481,0.48813321]
[1771345598427,0.46093569,84.529,84.481,0.48813321]
[1771345598634,0.46093569,84.529,84.491,0.48813321]
[1771345598839,0.46093569,84.526,84.491,0.48813321]
[1771345599429,0.46093569,84.519,84.48,7.22060942]
[1771345599642,0.46093569,84.519,84.479,15.86]
[1771345599843,0.46093569,84.509,84.472,0.48813321]
[1771345600141,0.46093569,84.509,84.472,11.83824225]
[1771345600455,0.46093569,84.509,84.481,0.48813321]
[1771345601646,0.46093569,84.526,84.491,0.48813321]
[1771345604446,0.46093569,84.534,84.493,0.48813321]
[1771345604643,0.45095164,84.529,84.49,7.22060942]
[1771345605048,0.45095164,84.529,84.49,19.51910185]
[1771345605353,0.45095164,84.529,84.491,0.4628077]
[1771345606225,0.45095164,84.529,84.48,7.22060942]
[1771345606548,0.45095164,84.509,84.475,11.83782184]
[1771345606730,0.45095164,84.509,84.48,7.22060942]
[1771345606932,0.45095164,84.509,84.475,11.83782184]
[1771345607245,0.45095164,84.509,84.475,12.30062954]
[1771345607751,0.45095164,84.509,84.48,7.22060942]
[1771345608329,0.45095164,84.509,84.47,7.22060942]
[1771345608524,0.45095164,84.509,84.466,0.4628077]
[1771345608735,0.45095164,84.499,84.461,15.84]
[1771345608937,0.45095164,84.499,84.462,11.83964386]
[1771345609131,0.45095164,84.499,84.47,7.22060942]
[1771345609330,4.61729252,84.522,84.471,0.4628077]
[1771345609331,0.45095164,84.507,84.471,0.4628077]
[1771345609644,0.45095164,84.515,84.481,0.4628077]
[1771345609830,0.45095164,84.509,84.473,0.4628077]
[1771345610949,0.45095164,84.509,84.466,0.4628077]
[1771345611142,0.45095164,84.499,84.466,0.4628077]
[1771345611927,0.45095164,84.499,84.467,11.83894301]
[1771345612552,0.45095164,84.499,84.46,23.06060942]
[1771345612747,0.45095164,84.499,84.46,7.22060942]
[1771345612961,0.45095164,84.499,84.462,0.48941677]
[1771345614446,0.45095164,84.499,84.464,0.48941677]
[1771345615231,0.45095164,84.499,84.47,7.22060942]
[1771345615437,0.48646139,84.506,84.48,7.22060942]
[1771345615931,0.48646139,84.506,84.48,7.71002619]
[1771345616128,0.48646139,84.506,84.481,0.48941677]
[1771345616757,0.48646139,84.506,84.48,7.22060942]
[1771345616961,0.48646139,84.506,84.473,0.48941677]
[1771345617745,0.48646139,84.506,84.48,7.22060942]
[1771345617944,0.48646139,84.506,84.481,0.48941677]
[1771345619251,0.48646139,84.506,84.471,0.48941677]
[1771345619561,0.48646139,84.506,84.472,0.48941677]
[1771345620447,4.61729252,84.517,84.481,0.48941677]
[1771345620633,0.48646139,84.516,84.481,0.48941677]
[1771345621153,0.48646139,84.516,84.482,11.83684098]
[1771345621357,0.48646139,84.516,84.483,0.48941677]
[1771345621547,0.48646139,84.509,84.476,16.34941677]
[1771345621943,0.48646139,84.509,84.478,0.48941677]
[1771345622641,0.48646139,84.509,84.481,0.48941677]
[1771345622845,0.48646139,84.526,84.481,0.48941677]
[1771345623153,0.48646139,84.516,84.481,11.83697164]
[1771345623463,0.48646139,84.516,84.482,0.48941677]
[1771345624662,0.48646139,84.516,84.481,11.83697164]
[1771345625065,0.48646139,84.516,84.482,0.48941677]
[1771345625247,0.48646139,84.516,84.484,0.48941677]
[1771345627971,0.48646139,84.516,84.486,0.48941677]
[1771345629972,4.61729252,84.517,84.476,15.86]
[1771345629973,0.48646139,84.509,84.476,15.86]
[1771345630147,0.48646139,84.509,84.473,0.48941677]
[1771345631372,0.48646139,84.489,84.453,0.48941677]
[1771345632074,7.22060942,84.49,84.45,7.22060942]
[1771345632075,7.22060942,84.49,84.451,0.48941677]
[1771345632382,103.5,84.545,84.481,0.48941677]
[1771345632383,0.48646139,84.519,84.481,0.48941677]
[1771345632550,0.48646139,84.519,84.491,0.48941677]
[1771345632963,0.48646139,84.539,84.492,0.48941677]
[1771345633150,0.48646139,84.536,84.492,0.48941677]
[1771345633352,0.48646139,84.536,84.501,0.48941677]
[1771345634271,0.48646139,84.536,84.503,0.48941677]
[1771345636073,0.47137274,84.519,84.485,0.45015112]
[1771345636482,0.47137274,84.509,84.476,0.45015112]
[1771345636659,0.47137274,84.509,84.477,0.45015112]
[1771345636854,0.47137274,84.509,84.481,0.45015112]
[1771345640553,0.47137274,84.509,84.482,11.83684098]
[1771345640773,0.47137274,84.509,84.483,0.45015112]
[1771345642494,4.61729252,84.537,84.483,0.45015112]
[1771345642495,0.47137274,84.516,84.483,0.45015112]
[1771345642785,0.47137274,84.525,84.491,0.45015112]
[1771345643161,0.47137274,84.532,84.501,0.45015112]
[1771345643363,2.42466183,84.57,84.511,0.45015112]
[1771345643364,0.47137274,84.543,84.511,0.45015112]
[1771345644186,0.47137274,84.559,84.511,0.45015112]
[1771345644392,4.61729252,84.567,84.511,0.45015112]
[1771345644393,0.47137274,84.549,84.511,0.45015112]
[1771345644914,0.47137274,84.549,84.513,0.45015112]
[1771345645900,0.47137274,84.549,84.515,0.45015112]
[1771345649103,0.47137274,84.559,84.531,0.45015112]
[1771345650598,0.47137274,84.559,84.53,7.21007184]
[1771345650800,0.47137274,84.549,84.52,15.86]
[1771345651585,0.47137274,84.549,84.521,11.83137918]
[1771345652692,0.47137274,84.549,84.522,0.45015112]
[1771345653016,0.47137274,84.556,84.524,0.45015112]
[1771345654391,0.47137274,84.563,84.531,0.45015112]
[1771345656411,0.47137274,84.563,84.533,0.45015112]
[1771345656600,0.47137274,84.563,84.54,7.6582596]
[1771345656906,0.47137274,84.563,84.532,11.82983958]
[1771345657228,0.47137274,84.559,84.532,11.82983958]
[1771345657506,0.47137274,84.559,84.528,11.83036193]
[1771345657709,0.47137274,84.549,84.528,11.83036193]
[1771345658310,0.47137274,84.549,84.523,0.45015112]
[1771345658311,0.47137274,84.549,84.524,11.83095925]
[1771345659111,0.47137274,84.549,84.517,11.83180218]
[1771345659405,0.47137274,84.549,84.513,11.83243385]
[1771345659615,0.47137274,84.529,84.498,11.83459075]
[1771345660008,0.47137274,84.519,84.482,0.45015112]
[1771345660209,0.47137274,84.509,84.475,0.45015112]
[1771345660520,0.47137274,84.509,84.48,7.6582596]
[1771345660812,0.47137274,84.509,84.481,0.45015112]
[1771345661817,0.47137274,84.509,84.476,11.8376817]
[1771345662831,0.47137274,84.499,84.464,0.45015112]
[1771345663000,0.47137274,84.49,84.464,0.45015112]
[1771345663317,0.47137274,84.49,84.462,15.88]
[1771345663318,0.47137274,84.499,84.466,0.45015112]
[1771345664399,0.49462699,84.489,84.458,11.84019455]
[1771345664598,0.49462699,84.489,84.458,12.29047539]
[1771345665007,0.49462699,84.489,84.454,27.72074523]
[1771345665316,0.49462699,84.479,84.454,11.84074523]
[1771345665514,65.50811553,84.636,84.437,11.84314933]
[1771345665515,0.49462699,84.469,84.437,11.84314933]
[1771345665716,7.20810848,84.46,84.437,12.29343017]
[1771345665908,0.49462699,84.459,84.432,11.84376968]
[1771345666696,7.20810848,84.47,84.433,0.45028084]
[1771345666933,0.49462699,84.479,84.442,11.84244807]
[1771345667217,0.49462699,84.479,84.443,0.45028084]
[1771345668996,0.49462699,84.479,84.431,29.60981819]
[1771345668997,0.49462699,84.469,84.434,11.84357012]
[1771345669300,0.49462699,84.459,84.434,11.84357012]
[1771345670293,0.49462699,84.459,84.425,0.45028084]
[1771345670795,7.70273547,84.45,84.425,0.45028084]
[1771345671003,7.70273547,84.45,84.425,12.29509689]
[1771345671317,0.49462699,84.449,84.425,12.29509689]
[1771345672516,0.49462699,84.449,84.425,11.84481605]
[1771345672820,0.49462699,84.449,84.419,11.84557602]
[1771345673029,0.49462699,84.449,84.42,0.45017867]
[1771345673312,0.49462699,84.449,84.422,0.45017867]
[1771345673697,0.48547736,84.459,84.422,0.45017867]
[1771345675613,0.48547736,84.459,84.424,0.45017867]
[1771345676804,0.48547736,84.459,84.426,0.45017867]
[1771345677713,0.48547736,84.439,84.411,11.84679721]
[1771345678598,0.48547736,84.439,84.412,0.45017867]
[1771345678799,0.48547736,84.428,84.393,0.45017867]
[1771345679105,0.48547736,84.436,84.401,0.45017867]
[1771345679313,0.48547736,84.443,84.41,7.22620344]
[1771345679516,0.48547736,84.443,84.411,0.45017867]
[1771345680415,0.48547736,84.451,84.42,7.22620344]
[1771345680628,0.48547736,84.451,84.421,0.45017867]
[1771345681823,0.48547736,84.439,84.412,11.84665687]
[1771345682197,4.61729252,84.462,84.391,12.29978348]
[1771345682198,0.48547736,84.429,84.391,12.29978348]
[1771345682401,0.48547736,84.429,84.393,0.45017867]
[1771345682629,7.7116808,84.42,84.393,0.45017867]
[1771345682827,0.48547736,84.419,84.392,15.94]
[1771345683301,0.48547736,84.419,84.39,0.1]
[1771345684196,0.48547736,84.418,84.39,0.55017867]
[1771345684899,0.48547736,84.418,84.39,0.1]
[1771345685219,0.48547736,84.399,84.373,11.85203539]
[1771345685426,0.48547736,84.399,84.37,0.1]
[1771345685601,0.48547736,84.389,84.37,0.1]
[1771345686004,7.22620344,84.38,84.37,0.1]
[1771345686403,0.48547736,84.381,84.37,0.1]
[1771345687011,7.22620344,84.38,84.37,0.1]
[1771345687427,0.48547736,84.361,84.308,0.45017867]
[1771345687630,0.48547736,84.329,84.307,11.86141127]
[1771345687807,7.22620344,84.32,84.296,0.45017867]
[1771345688006,7.22620344,84.32,84.25,66.81605249]
[1771345688007,7.22620344,84.33,84.306,16.07914351]
[1771345688503,7.22620344,84.33,84.307,11.86141127]
[1771345689024,7.22620344,84.33,84.306,27.9406847]
[1771345689730,7.22620344,84.33,84.306,16.07914351]
[1771345690109,7.22620344,84.32,84.306,16.07914351]
[1771345690306,7.22620344,84.33,84.307,11.86141127]
[1771345690508,7.22620344,84.4,84.308,0.5]
[1771345690509,7.22620344,84.34,84.308,0.5]
[1771345690725,4.61729252,84.352,84.307,0.5]
[1771345690726,7.22620344,84.33,84.307,0.5]
[1771345690906,4.61729252,84.352,84.307,0.5]
[1771345690907,7.22620344,84.34,84.307,0.5]
[1771345691109,4.61729252,84.347,84.311,0.5]
[1771345691410,7.22620344,84.36,84.321,0.5]
[1771345691731,7.22620344,84.36,84.32,7.22620344]
[1771345691937,7.22620344,84.37,84.331,0.5]
[1771345692105,4.61729252,84.377,84.341,0.5]
[1771345692315,4.61729252,84.377,84.343,0.5]
[1771345692825,0.48547736,84.379,84.33,15.96]
[1771345693132,7.22620344,84.4,84.33,7.22620344]
[1771345693133,7.22620344,84.36,84.33,7.22620344]
[1771345693506,7.22620344,84.36,84.32,7.22620344]
[1771345693812,7.22620344,84.37,84.33,7.22620344]
[1771345694423,0.46980662,84.4,84.32,41.50853889]
[1771345694613,7.22620344,84.37,84.33,7.22620344]
[1771345694928,7.22620344,84.37,84.331,0.48679172]
[1771345696409,0.46980662,84.403,84.36,7.71299516]
[1771345696613,0.46980662,84.399,84.36,7.71299516]
[1771345696825,4.61729252,84.407,84.371,0.48679172]
[1771345697023,0.46980662,84.418,84.381,0.48679172]
[1771345697224,0.46980662,84.416,84.381,0.48679172]
[1771345697811,7.69601006,84.42,84.39,0.48679172]
[1771345698523,7.69601006,84.42,84.391,11.84960481]
[1771345698721,13.16,84.454,84.391,11.84960481]
[1771345698722,0.46980662,84.429,84.392,0.48679172]
[1771345698918,0.46980662,84.419,84.391,11.84960481]
[1771345699330,0.46980662,84.419,84.387,11.85014252]
[1771345699527,7.22620344,84.41,84.387,11.85014252]
[1771345699839,0.46980662,84.428,84.391,0.48679172]
[1771345700563,0.46980662,84.428,84.375,47.40724735]
[1771345700564,0.46980662,84.419,84.383,0.48679172]
[1771345700736,7.22620344,84.42,84.383,0.48679172]
[1771345700924,0.46980662,84.429,84.391,0.48679172]
[1771345701811,7.22620344,84.41,84.387,11.85004725]
[1771345702011,0.46980662,84.409,84.387,11.85004725]
[1771345702437,0.46980662,84.409,84.383,11.85072717]
[1771345703136,0.46980662,84.418,84.384,0.48679172]
[1771345703645,5.08709914,84.427,84.391,0.48679172]
[1771345703833,0.46980662,84.426,84.392,11.8494644]
[1771345704020,0.46980662,84.426,84.393,0.48679172]
[1771345704222,7.22620344,84.43,84.393,0.48679172]
[1771345704534,7.22620344,84.45,84.411,0.48679172]
[1771345704913,0.2,84.48,84.421,0.48679172]
[1771345704914,7.22620344,84.46,84.421,0.48679172]
[1771345705337,0.46980662,84.47,84.421,0.48679172]
[1771345705523,7.22620344,84.46,84.421,0.48679172]
[1771345705834,7.22620344,84.46,84.423,0.48679172]
[1771345706534,7.22620344,84.45,84.423,0.48679172]
[1771345707121,0.46980662,84.439,84.4,0.48679172]
[1771345707316,7.22620344,84.44,84.405,0.48679172]
[1771345707852,7.22620344,84.44,84.407,0.48679172]
[1771345708745,7.22620344,84.42,84.397,0.48679172]
[1771345708917,7.22620344,84.43,84.393,0.48679172]
[1771345709742,7.22620344,84.42,84.393,0.48679172]
[1771345709940,7.22620344,84.42,84.394,11.84918359]
[1771345710333,7.22620344,84.42,84.393,0.48679172]
[1771345710535,7.22620344,84.42,84.394,11.84918359]
[1771345710843,7.22620344,84.42,84.394,12.33597531]
[1771345711147,4.61729252,84.427,84.395,0.48679172]
[1771345711553,0.46980662,84.45,84.395,0.48679172]
[1771345711843,4.61729252,84.427,84.395,0.48679172]
[1771345712633,4.61729252,84.427,84.397,0.48679172]
[1771345713148,4.61729252,84.437,84.397,0.48679172]
[1771345713453,29.74046218,84.63,84.3,53.4]
[1771345713454,7.22620344,84.42,84.381,0.48679172]
[1771345713631,7.69601006,84.42,84.381,0.48679172]
[1771345713831,0.46980662,84.419,84.382,0.48679172]
[1771345714029,0.46980662,84.409,84.382,0.48679172]
[1771345714253,0.46980662,84.409,84.366,29.63264291]
[1771345714254,7.22620344,84.4,84.373,0.48679172]
[1771345715153,7.22620344,84.4,84.359,16.0]
[1771345715154,7.22620344,84.39,84.367,11.85288948]
[1771345715626,7.22620344,84.38,84.357,0.48679172]
[1771345715826,7.22620344,84.38,84.357,12.34110589]
[1771345716027,7.24028008,84.37,84.341,0.48679172]
[1771345716949,7.24028008,84.38,84.343,0.48679172]
[1771345717329,7.24028008,84.37,84.343,0.48679172]
[1771345719044,7.24028008,84.36,84.338,11.85697421]
[1771345719531,7.24028008,84.37,84.339,0.48679172]
[1771345720126,0.46980662,84.396,84.341,0.48679172]
[1771345720328,0.46980662,84.396,84.338,41.49960268]
[1771345720329,7.24028008,84.38,84.351,0.48679172]
[1771345721148,7.24028008,84.38,84.352,12.34187517]
[1771345721731,7.24028008,84.38,84.353,0.48679172]
[1771345722434,7.24028008,84.37,84.347,11.85569716]
[1771345722641,0.46980662,84.379,84.347,11.85569716]
[1771345722825,0.46980662,84.379,84.337,29.64277923]
[1771345722826,7.24028008,84.37,84.337,0.48679172]
[1771345723030,7.24028008,84.36,84.333,11.85775437]
[1771345723252,7.24028008,84.36,84.333,0.48679172]
[1771345723454,0.46980662,84.369,84.333,0.48679172]
[1771345723756,7.24028008,84.37,84.333,0.48679172]
[1771345724357,7.73136452,84.37,84.333,0.48679172]
[1771345724656,7.24028008,84.35,84.327,0.48428935]
[1771345724848,4.61729252,84.367,84.331,0.48428935]
[1771345725034,7.24028008,84.37,84.331,0.48428935]
[1771345725240,7.24028008,84.37,84.333,0.48428935]
[1771345726253,4.61729252,84.377,84.333,0.48428935]
[1771345726451,7.24028008,84.37,84.333,0.48428935]
[1771345727454,0.49108444,84.382,84.335,0.48428935]
[1771345727652,7.24028008,84.37,84.335,0.48428935]
[1771345728237,4.61729252,84.377,84.341,0.48428935]
[1771345728433,0.49108444,84.4,84.361,0.48428935]
[1771345728644,7.24028008,84.39,84.361,0.48428935]
[1771345728840,7.73136452,84.4,84.361,0.48428935]
[1771345729038,7.24028008,84.4,84.361,0.48428935]
[1771345729455,0.49108444,84.419,84.381,0.48428935]
[1771345729635,7.24028008,84.42,84.381,0.48428935]
[1771345730055,0.49108444,84.427,84.391,0.48428935]
[1771345730456,7.24028008,84.43,84.391,0.48428935]
[1771345730956,0.49108444,84.436,84.401,0.48428935]
[1771345731436,4.61729252,84.437,84.41,7.24028008]
[1771345731753,4.61729252,84.437,84.41,0.48428935]
[1771345731955,0.49108444,84.436,84.402,41.46821165]
[1771345732147,0.47009961,84.419,84.39,7.24028008]
[1771345732347,0.47009961,84.409,84.381,11.85100911]
[1771345733060,0.47009961,84.416,84.382,0.47288453]
[1771345733255,0.47009961,84.416,84.39,7.24028008]
[1771345733560,4.61729252,84.417,84.391,11.84960481]
[1771345735249,4.61729252,84.417,84.384,0.47288453]
[1771345735449,0.47009961,84.425,84.391,0.47288453]
[1771345735763,0.47009961,84.419,84.39,7.24028008]
[1771345737064,0.47009961,84.419,84.384,0.47288453]
[1771345737359,0.47009961,84.419,84.385,41.94945026]
[1771345739648,0.47009961,84.419,84.386,0.47288453]
[1771345740169,0.47009961,84.426,84.391,0.47288453]
[1771345741352,0.47009961,84.419,84.391,0.47288453]
[1771345741656,0.47009961,84.419,84.391,12.32236166]
[1771345741960,0.47009961,84.419,84.391,11.84947713]
[1771345742168,0.47009961,84.419,84.381,0.47288453]
[1771345742470,0.47009961,84.416,84.381,0.47288453]
[1771345742673,0.47009961,84.434,84.401,0.47288453]
[1771345743371,0.47009961,84.419,84.387,0.47288453]
[1771345743576,0.47009961,84.419,84.391,0.47288453]
[1771345744068,0.47009961,84.429,84.391,0.47288453]
[1771345744260,0.47009961,84.429,84.39,7.24028008]
[1771345744261,0.47009961,84.429,84.401,0.47288453]
[1771345745461,0.47009961,84.429,84.393,0.47288453]
[1771345746654,0.47009961,84.419,84.38,7.24028008]
[1771345747181,0.47009961,84.409,84.38,7.24028008]
[1771345747677,0.47009961,84.409,84.377,0.47288453]
[1771345748462,0.47009961,84.409,84.37,7.24028008]
[1771345748658,0.47009961,84.389,84.36,0.47288453]
[1771345749763,0.47009961,84.379,84.34,7.71316461]
[1771345749962,0.47009961,84.379,84.239,47.48341922]
[1771345749963,7.24028008,84.36,84.331,0.47288453]
[1771345750565,7.71037969,84.36,84.331,0.47288453]
[1771345750761,7.71037969,84.36,84.299,16.02]
[1771345750762,7.24028008,84.35,84.321,0.47288453]
[1771345750977,7.71037969,84.35,84.321,0.47288453]
[1771345751178,0.47009961,84.349,84.321,0.47288453]
[1771345751774,7.24028008,84.35,84.321,0.47288453]
[1771345751971,0.47009961,84.357,84.321,0.47288453]
[1771345752368,0.47009961,84.349,84.321,0.47288453]
[1771345752884,0.47009961,84.349,84.313,0.47288453]
[1771345753075,7.24028008,84.34,84.313,0.47288453]
[1771345753872,0.47009961,84.349,84.313,0.47288453]
[1771345754194,0.47009961,84.349,84.277,16.0]
[1771345754195,7.24028008,84.33,84.305,0.47288453]
[1771345754390,7.24028008,84.33,84.297,0.48397096]
[1771345754391,0.49821694,84.329,84.297,0.48397096]
[1771345755090,7.24028008,84.32,84.289,0.48397096]
[1771345755280,0.49821694,84.319,84.306,15.57914351]
[1771345755667,4.61729252,84.317,84.306,15.57914351]
[1771345755874,4.61729252,84.317,84.272,0.5]
[1771345756074,7.24028008,84.3,84.27,0.1]
[1771345756397,7.24028008,84.3,84.27,0.6]
[1771345757576,13.06,84.319,84.27,0.6]
[1771345757889,7.24028008,84.3,84.27,0.6]
[1771345758187,7.24028008,84.29,84.27,0.6]
[1771345758491,7.24028008,84.28,84.25,7.84028008]
[1771345758697,4.61729252,84.287,84.251,0.5]
[1771345759077,4.61729252,84.326,84.251,0.5]
[1771345759280,4.61729252,84.287,84.251,0.5]
[1771345761004,7.24028008,84.28,84.251,0.5]
[1771345761173,4.61729252,84.287,84.25,0.1]
[1771345761503,7.24028008,84.3,84.25,0.1]
[1771345761504,7.24028008,84.27,84.25,0.6]
[1771345761672,7.24028008,84.28,84.25,0.6]
[1771345762292,4.61729252,84.297,84.25,0.6]
[1771345762503,7.24028008,84.28,84.25,0.6]
[1771345763001,4.61729252,84.287,84.251,0.5]
[1771345763403,7.24028008,84.28,84.251,0.5]
[1771345763699,4.61729252,84.287,84.251,0.5]
[1771345763882,7.24028008,84.28,84.251,0.5]
[1771345765090,7.24028008,84.27,84.251,0.5]
[1771345765302,7.24028008,84.28,84.251,0.5]
[1771345766393,7.24028008,84.27,84.25,0.1]
[1771345767003,7.24028008,84.26,84.25,0.1]
[1771345767200,7.24028008,84.27,84.25,0.1]
[1771345767899,4.61729252,84.257,84.227,0.2578156]
[1771345768120,7.24028008,84.25,84.228,0.5]
[1771345768306,4.61729252,84.27,84.228,0.5]
[1771345768509,4.61729252,84.257,84.228,0.5]
[1771345769090,4.61729252,84.257,84.227,0.2578156]
[1771345769091,7.24028008,84.27,84.231,0.5]
[1771345769787,4.61729252,84.294,84.231,0.5]
[1771345769788,7.24028008,84.25,84.231,0.5]
[1771345770106,7.24028008,84.25,84.228,0.5]
[1771345770600,7.24028008,84.27,84.231,0.5]
[1771345770809,7.24028008,84.27,84.241,0.5]
[1771345770810,4.61729252,84.267,84.241,0.5]
[1771345770996,4.61729252,84.277,84.241,0.5]
[1771345773202,4.61729252,84.297,84.241,0.5]
[1771345773503,7.24028008,84.27,84.241,0.5]
[1771345773708,4.61729252,84.277,84.241,0.5]
[1771345773882,13.06,84.301,84.251,0.5]
[1771345774086,6.20163776,84.311,84.251,0.5]
[1771345774087,4.61729252,84.287,84.251,0.5]
[1771345774287,7.24028008,84.28,84.251,0.5]
[1771345778015,4.61729252,84.287,84.251,0.5]
[1771345778398,7.25657994,84.28,84.251,0.5]